[Event "-chT Youth Countries 2019"]
[Site "Wuerzburg"]
[Date "2019.10.06"]
[Round "7.1"]
[White "Herbrig, Alexander"]
[Black "Muckle, Julius"]
[Result "0-1"]
[ECO "C13"]
[WhiteElo "2295"]
[BlackElo "2398"]
[Annotator "ChessBase"]
[PlyCount "130"]
[EventDate "2019.10.02"]
[EventType "team-tourn"]
[EventRounds "7"]
[EventCountry "GER"]
[SourceTitle "playchess.com"]
[Source "ChessBase"]
[SourceQuality "1"]
[WhiteTeam "Sachsen"]
[BlackTeam "Rheinland-Pfalz"]
[TimeControl "40/5400+30:1800+30"]

1. e4 {[%emt 0:00:00]} e6 {[%emt 0:00:00]} 2. d4 {[%emt 0:00:00]} d5 {[%emt 0:00:00]} 3. Nc3 {[%emt 0:00:00]} Nf6 {[%emt 0:00:00]} 4. Bg5 {[%emt 0:00:00]} Be7 {[%emt 0:00:00]} 5. e5 {[%emt 0:00:00]} Nfd7 {[%emt 0:00:01]} 6. h4 {[%emt 0:00:06]} h6 {[%emt 0:00:07]} 7. Bxe7 {[%emt 0:00:36]} Qxe7 {[%emt 0:00:03]} 8. Bd3 {[%emt 0:07:02]} O-O {[%emt 0:01:54]} 9. f4 {[%emt 0:14:54]} c5 {[%emt 0:03:40]} 10. dxc5 {[%emt 0:09:42]} f6 {[%emt 0:07:32]} 11. Qe2 {[%emt 0:10:23]} fxe5 {[%emt 0:09:30]} 12. fxe5 {[%emt 0:00:08]} Nc6 {[%emt 0:00:03]} 13. Nf3 {[%emt 0:00:52]} Nxc5 {[%emt 0:13:15]} 14. O-O-O {[%emt 0:06:54]} a6 {[%emt 0:02:28]} 15. g4 {[%emt 0:04:01]} Nxd3+ {[%emt 0:09:35]} 16. Qxd3 {[%emt 0:10:13]} Bd7 {[%emt 0:02:43]} 17. g5 {[%emt 0:06:50]} h5 {[%emt 0:06:14]} 18. Nd4 {[%emt 0:10:19]} Rf4 {[%emt 0:14:55]} 19. Nce2 {[%emt 0:03:25]} Rg4 {[%emt 0:03:30]} 20. Nxc6 {[%emt 0:01:30]} bxc6 {[%emt 0:05:35]} 21. Rdg1 {[%emt 0:01:05]} Rxg1+ {[%emt 0:01:17]} 22. Rxg1 {[%emt 0:00:15]} Rf8 {[%emt 0:00:35]} 23. Ng3 {[%emt 0:01:22]} Qc5 {[%emt 0:00:37]} 24. Rd1 {[%emt 0:07:08]} Be8 {[%emt 0:03:18]} 25. a3 {[%emt 0:00:33]} Rf4 26. Ne2 {[%emt 0:01:24]} Re4 {[%emt 0:05:49]} 27. Kb1 {[%emt 0:01:02]} Qe3 {[%emt 0:02:17]} 28. Qxe3 {[%emt 0:00:51]} Rxe3 {[%emt 0:00:05]} 29. Nf4 {[%emt 0:00:01]} Rxe5 {[%emt 0:00:21]} 30. Nd3 {[%emt 0:00:01]} Re2 {[%emt 0:02:25]} 31. Nc5 {[%emt 0:00:28]} Bg6 {[%emt 0:00:07]} 32. Rc1 {[%emt 0:00:05]} d4 {[%emt 0:02:01]} 33. Nd3 {[%emt 0:02:35]} e5 {[%emt 0:00:41]} 34. Rf1 {[%emt 0:01:04]} c5 {[%emt 0:00:41]} 35. b3 {[%emt 0:00:14]} Re3 {[%emt 0:01:09]} 36. Nxc5 {[%emt 0:00:44]} Rc3 {[%emt 0:01:56]} 37. Nd7 {[%emt 0:01:04]} Rxb3+ {[%emt 0:03:27]} 38. Kc1 {[%emt 0:00:27]} Rc3 {[%emt 0:00:29]} 39. Nxe5 {[%emt 0:01:00]} Bxc2 {[%emt 0:00:26]} 40. Kb2 {[%emt 0:00:46]} Rc5 {[%emt 0:00:41]} 41. Nd7 {[%emt 0:08:07]} Rc8 {[%emt 0:02:15]} 42. Rf4 {[%emt 0:02:11]} d3 {[%emt 0:02:30]} 43. Rd4 {[%emt 0:00:29]} Kf7 {[%emt 0:03:57]} 44. Ne5+ {[%emt 0:10:48]} Ke6 {[%emt 0:00:12]} 45. Nxd3 {[%emt 0:00:30]} Bxd3 {[%emt 0:00:13]} 46. Rxd3 {[%emt 0:00:02]} Rc4 {[%emt 0:00:07]} 47. Re3+ {[%emt 0:00:44]} Kf7 {[%emt 0:01:34]} 48. Rh3 {[%emt 0:01:39]} Kg6 {[%emt 0:00:50]} 49. Rh1 {[%emt 0:06:32]} a5 {[%emt 0:00:35]} 50. Rh3 {[%emt 0:01:46]} a4 {[%emt 0:00:32]} 51. Rh1 {[%emt 0:01:12]} Kf5 {[%emt 0:00:42]} 52. Rf1+ {[%emt 0:00:54]} Rf4 {[%emt 0:00:22]} 53. Rc1 {[%emt 0:01:19]} Rxh4 {[%emt 0:00:12]} 54. Rc7 {[%emt 0:00:23]} Kg6 {[%emt 0:02:36]} 55. Kc3 {[%emt 0:00:59]} Rg4 {[%emt 0:00:30]} 56. Kd3 {[%emt 0:00:15]} Rxg5 {[%emt 0:00:42]} 57. Ke3 {[%emt 0:00:32]} Rg3+ {[%emt 0:04:21]} 58. Kf4 {[%emt 0:00:02]} Rxa3 {[%emt 0:00:14]} 59. Rc6+ {[%emt 0:00:08]} Kh7 {[%emt 0:00:07]} 60. Kg5 {[%emt 0:00:05]} Ra1 {[%emt 0:00:23]} 61. Kxh5 {[%emt 0:01:42]} a3 {[%emt 0:00:03]} 62. Rc2 {[%emt 0:00:09]} a2 {[%emt 0:00:30]} 63. Rh2 {[%emt 0:00:02]} Kg8 {[%emt 0:00:14]} 64. Kh4 {[%emt 0:00:21]} g6 {[%emt 0:00:04]} 65. Kh3 {[%emt 0:01:23]} g5 {[%emt 0:00:01] normal} 0-1

[Event "-chT Youth Countries 2019"]
[Site "Wuerzburg"]
[Date "2019.10.06"]
[Round "7.1"]
[White "Polster, Christian"]
[Black "Svane, Frederik"]
[Result "1/2-1/2"]
[ECO "B40"]
[WhiteElo "2279"]
[BlackElo "2360"]
[Annotator "ChessBase"]
[PlyCount "107"]
[EventDate "2019.10.02"]
[EventType "team-tourn"]
[EventRounds "7"]
[EventCountry "GER"]
[SourceTitle "playchess.com"]
[Source "ChessBase"]
[SourceQuality "1"]
[WhiteTeam "Niedersachsen"]
[BlackTeam "Schleswig-Holstein"]
[TimeControl "40/5400+30:1800+30"]

1. e4 {[%emt 0:00:00]} c5 {[%emt 0:00:00]} 2. Nf3 {[%emt 0:00:00]} e6 {[%emt 0:00:29]} 3. c4 {[%emt 0:00:25]} Nc6 {[%emt 0:01:59]} 4. Nc3 {[%emt 0:03:29]} Nf6 {[%emt 0:06:12]} 5. Be2 {[%emt 0:03:56]} d5 {[%emt 0:08:15]} 6. exd5 {[%emt 0:06:59]} exd5 {[%emt 0:01:13]} 7. d4 {[%emt 0:01:47]} cxd4 {[%emt 0:17:57]} 8. Nxd4 {[%emt 0:04:44]} Bb4 {[%emt 0:01:39]} 9. O-O {[%emt 0:06:05]} O-O {[%emt 0:00:25]} 10. Nxd5 {[%emt 0:07:21]} Nxd5 {[%emt 0:02:42]} 11. Nxc6 {[%emt 0:01:23]} bxc6 {[%emt 0:00:02]} 12. cxd5 {[%emt 0:00:19]} cxd5 {[%emt 0:00:03]} 13. Bf3 {[%emt 0:02:35]} Be6 {[%emt 0:00:13]} 14. Be3 {[%emt 0:06:35]} Qd7 {[%emt 0:13:08]} 15. Qd4 {[%emt 0:04:40]} Be7 {[%emt 0:01:09]} 16. Rfd1 {[%emt 0:04:27]} Rfd8 {[%emt 0:01:28]} 17. Qd2 {[%emt 0:06:24]} Rac8 {[%emt 0:09:43]} 18. Bd4 {[%emt 0:03:00]} Bc5 {[%emt 0:09:58]} 19. Rac1 {[%emt 0:09:49]} Bxd4 {[%emt 0:00:06]} 20. Qxd4 {[%emt 0:00:08]} h6 {[%emt 0:00:32]} 21. h4 {[%emt 0:02:16]} Rxc1 {[%emt 0:02:32]} 22. Rxc1 {[%emt 0:00:07]} Rc8 {[%emt 0:00:08]} 23. Rxc8+ {[%emt 0:05:37]} Qxc8 {[%emt 0:00:10]} 24. g3 {[%emt 0:01:01]} a5 {[%emt 0:03:12]} 25. a3 {[%emt 0:03:47]} Qc6 {[%emt 0:04:19]} 26. Kg2 {[%emt 0:02:31]} Qb5 {[%emt 0:02:01]} 27. b4 {[%emt 0:03:39]} axb4 {[%emt 0:00:44]} 28. axb4 {[%emt 0:07:00]} Kf8 {[%emt 0:01:53]} 29. Bd1 {[%emt 0:01:32]} Bf5 {[%emt 0:01:50]} 30. Bf3 {[%emt 0:01:58]} Be6 {[%emt 0:00:05]} 31. Kg1 {[%emt 0:01:00]} Kg8 {[%emt 0:03:53]} 32. Bg2 {[%emt 0:00:23]} Qc6 {[%emt 0:05:15]} 33. Bf1 {[%emt 0:00:59]} Qc1 {[%emt 0:01:05]} 34. Kg2 {[%emt 0:00:31]} Bh3+ {[%emt 0:01:21]} 35. Kxh3 {[%emt 0:00:02]} Qxf1+ {[%emt 0:00:07]} 36. Kh2 {[%emt 0:00:18]} h5 {[%emt 0:01:09]} 37. Qxd5 {[%emt 0:00:52]} Qxf2+ {[%emt 0:00:06]} 38. Qg2 {[%emt 0:00:11]} Qb6 {[%emt 0:00:15]} 39. Qb2 {[%emt 0:00:41]} Qb5 {[%emt 0:00:06]} 40. Kg2 {[%emt 0:00:27]} g6 {[%emt 0:00:04]} 41. Kf2 {[%emt 0:30:46]} Qb6+ {[%emt 0:31:45]} 42. Kf3 {[%emt 0:00:00]} Qc6+ {[%emt 0:00:00]} 43. Kf2 {[%emt 0:00:00]} Qb6+ {[%emt 0:00:00]} 44. Kg2 {[%emt 0:00:00]} Qc6+ {[%emt 0:00:00]} 45. Kh2 {[%emt 0:00:00]} Qb5 {[%emt 0:00:00]} 46. Qd2 {[%emt 0:00:00]} Qf1 {[%emt 0:00:00]} 47. Qe3 {[%emt 0:00:00]} Kh7 {[%emt 0:00:00]} 48. Qd2 {[%emt 0:00:00]} Kg8 {[%emt 0:00:00]} 49. Qb2 {[%emt 0:00:00]} Qb5 {[%emt 0:00:00]} 50. Kg1 {[%emt 0:00:00]} Qd3 {[%emt 0:00:00]} 51. Kg2 {[%emt 0:01:15]} Qd5+ {[%emt 0:00:00]} 52. Kf2 {[%emt 0:03:06]} Qf5+ {[%emt 0:00:00]} 53. Ke3 {[%emt 0:01:15]} Qe6+ {[%emt 0:00:00]} 54. Kf2 {[%emt 0:00:58] normal} 1/2-1/2

[Event "-chT Youth Countries 2019"]
[Site "Wuerzburg"]
[Date "2019.10.06"]
[Round "7.1"]
[White "Vuckovic, Zarko"]
[Black "Browning, Alex"]
[Result "1/2-1/2"]
[ECO "B92"]
[WhiteElo "2253"]
[BlackElo "2291"]
[Annotator "ChessBase"]
[PlyCount "155"]
[EventDate "2019.10.02"]
[EventType "team-tourn"]
[EventRounds "7"]
[EventCountry "GER"]
[SourceTitle "playchess.com"]
[Source "ChessBase"]
[SourceQuality "1"]
[WhiteTeam "Bayern 1"]
[BlackTeam "Nordrhein-Westfalen"]
[TimeControl "40/5400+30:1800+30"]

1. e4 {[%emt 0:00:00]} c5 {[%emt 0:00:00]} 2. Nf3 {[%emt 0:00:00]} d6 {[%emt 0:00:00]} 3. d4 {[%emt 0:00:00]} cxd4 {[%emt 0:00:00]} 4. Nxd4 {[%emt 0:00:00]} Nf6 {[%emt 0:00:15]} 5. Nc3 {[%emt 0:00:00]} a6 {[%emt 0:00:10]} 6. Be2 {[%emt 0:00:00]} e5 {[%emt 0:00:28]} 7. Nb3 {[%emt 0:00:45]} Be7 {[%emt 0:02:21]} 8. O-O {[%emt 0:00:36]} O-O {[%emt 0:00:59]} 9. Re1 {[%emt 0:00:04]} Qc7 {[%emt 0:03:00]} 10. a4 {[%emt 0:00:27]} b6 {[%emt 0:05:20]} 11. Bg5 {[%emt 0:09:31]} Nbd7 {[%emt 0:00:51]} 12. Bg4 {[%emt 0:03:47]} h6 {[%emt 0:10:31]} 13. Bxd7 {[%emt 0:00:05]} hxg5 {[%emt 0:00:23]} 14. Bxc8 {[%emt 0:00:02]} Raxc8 {[%emt 0:00:23]} 15. Qd3 {[%emt 0:01:33]} d5 {[%emt 0:13:08]} 16. exd5 {[%emt 0:05:36]} Bb4 {[%emt 0:00:17]} 17. Qxa6 {[%emt 0:07:57]} Bxc3 {[%emt 0:01:34]} 18. bxc3 {[%emt 0:00:18]} Nxd5 {[%emt 0:01:12]} 19. Qb5 {[%emt 0:00:52]} Rfd8 {[%emt 0:09:08]} 20. g3 {[%emt 0:04:01]} f6 {[%emt 0:10:51]} 21. a5 {[%emt 0:08:05]} bxa5 {[%emt 0:00:27]} 22. Nxa5 {[%emt 0:00:02]} Nxc3 {[%emt 0:01:20]} 23. Qb3+ {[%emt 0:01:30]} Qf7 {[%emt 0:07:53]} 24. Re3 {[%emt 0:05:17]} Qxb3 {[%emt 0:01:38]} 25. cxb3 {[%emt 0:00:10]} Nb5 {[%emt 0:00:13]} 26. Nc4 {[%emt 0:05:42]} Rc7 {[%emt 0:00:45]} 27. Kg2 {[%emt 0:07:57]} Nd4 {[%emt 0:01:34]} 28. Rd3 {[%emt 0:00:36]} Rb8 {[%emt 0:00:58]} 29. Nd2 {[%emt 0:02:52]} Rb4 {[%emt 0:03:38]} 30. Ra4 {[%emt 0:03:54]} Rb5 {[%emt 0:00:47]} 31. Rc4 {[%emt 0:03:13]} Rcb7 {[%emt 0:00:22]} 32. Rcc3 {[%emt 0:00:41]} Kh7 {[%emt 0:00:27]} 33. h3 {[%emt 0:01:58]} Kg6 {[%emt 0:01:50]} 34. Kf1 {[%emt 0:01:11]} Ra5 {[%emt 0:02:19]} 35. Re3 {[%emt 0:03:44]} Ra2 {[%emt 0:01:50]} 36. Nf3 {[%emt 0:01:02]} Rb2 {[%emt 0:00:13]} 37. Rc4 {[%emt 0:04:34]} Nf5 {[%emt 0:02:53]} 38. Rec3 {[%emt 0:04:17]} Ra7 {[%emt 0:02:00]} 39. Rc2 {[%emt 0:08:41]} Rxb3 {[%emt 0:00:33]} 40. R2c3 {[%emt 0:00:42]} Rb2 {[%emt 0:03:46]} 41. Rc2 {[%emt 0:30:22]} Ra1+ {[%emt 0:31:15]} 42. Kg2 {[%emt 0:00:11]} Raa2 {[%emt 0:01:44]} 43. Rxb2 {[%emt 0:01:15]} Rxb2 {[%emt 0:00:10]} 44. Ra4 {[%emt 0:00:03]} Kh7 {[%emt 0:01:51]} 45. h4 {[%emt 0:02:15]} g4 {[%emt 0:00:29]} 46. Ne1 {[%emt 0:00:36]} Kh6 {[%emt 0:05:40]} 47. Kf1 {[%emt 0:04:57]} Nd4 {[%emt 0:00:22]} 48. Ra1 {[%emt 0:00:17]} Kh5 {[%emt 0:00:00]} 49. Ng2 {[%emt 0:00:00]} Nb3 {[%emt 0:00:00]} 50. Rd1 {[%emt 0:00:00]} Nd2+ {[%emt 0:00:00]} 51. Kg1 {[%emt 0:00:00]} Ne4 {[%emt 0:00:00]} 52. Rf1 {[%emt 0:00:00]} Re2 {[%emt 0:00:00]} 53. Re1 {[%emt 0:00:00]} Rxe1+ {[%emt 0:00:00]} 54. Nxe1 {[%emt 0:00:00]} Nd2 {[%emt 0:00:00]} 55. Nc2 {[%emt 0:00:00]} f5 {[%emt 0:00:00]} 56. Ne3 {[%emt 0:00:00]} f4 {[%emt 0:00:00]} 57. Nd5 {[%emt 0:00:00]} f3 {[%emt 0:00:00]} 58. Kh2 {[%emt 0:00:00]} Nc4 {[%emt 0:00:00]} 59. Kg1 {[%emt 0:00:00]} Kg6 {[%emt 0:00:00]} 60. Kf1 {[%emt 0:00:00]} Kf5 {[%emt 0:00:00]} 61. Ke1 {[%emt 0:00:00]} e4 {[%emt 0:00:00]} 62. Nc3 {[%emt 0:00:00]} Ke5 {[%emt 0:00:38]} 63. Nb5 {[%emt 0:00:00]} e3 {[%emt 0:02:21]} 64. fxe3 {[%emt 0:00:00]} Ke4 {[%emt 0:00:10]} 65. Nc3+ {[%emt 0:00:00]} Kd3 {[%emt 0:00:58]} 66. Nd1 {[%emt 0:00:00]} Nxe3 {[%emt 0:00:32]} 67. Nf2+ {[%emt 0:00:00]} Kd4 {[%emt 0:00:31]} 68. h5 {[%emt 0:00:00]} Kc3 {[%emt 0:04:01]} 69. Ne4+ {[%emt 0:00:00]} Kd3 {[%emt 0:00:12]} 70. Nc5+ {[%emt 0:00:00]} Kc4 {[%emt 0:00:18]} 71. Ne6 {[%emt 0:00:00]} Kd5 {[%emt 0:01:57]} 72. Nxg7 {[%emt 0:00:00]} Ke5 {[%emt 0:00:17]} 73. Ne8 {[%emt 0:00:00]} Kf5 {[%emt 0:00:10]} 74. h6 {[%emt 0:00:00]} Kg6 {[%emt 0:00:05]} 75. Kf2 {[%emt 0:00:00]} Nf5 {[%emt 0:00:24]} 76. h7 {[%emt 0:00:00]} Kxh7 {[%emt 0:00:15]} 77. Nf6+ {[%emt 0:00:00]} Kg6 {[%emt 0:00:10]} 78. Nxg4 {[%emt 0:00:00] normal} 1/2-1/2

[Event "-chT Youth Countries 2019"]
[Site "Wuerzburg"]
[Date "2019.10.06"]
[Round "7.1"]
[White "Philipp, Mathias"]
[Black "Tiarks, Jann-Christian"]
[Result "1-0"]
[ECO "B00"]
[WhiteElo "2063"]
[BlackElo "2178"]
[Annotator "ChessBase"]
[PlyCount "35"]
[EventDate "2019.10.02"]
[EventType "team-tourn"]
[EventRounds "7"]
[EventCountry "GER"]
[SourceTitle "playchess.com"]
[Source "ChessBase"]
[SourceQuality "1"]
[WhiteTeam "Thüringen"]
[BlackTeam "Brandenburg/Berlin"]
[TimeControl "40/5400+30:1800+30"]

1. e4 {[%emt 0:00:00]} b6 {[%emt 0:00:40]} 2. d4 {[%emt 0:00:00]} Bb7 {[%emt 0:00:05]} 3. Bd3 {[%emt 0:00:00]} e6 {[%emt 0:00:15]} 4. Nf3 {[%emt 0:00:00]} c5 {[%emt 0:00:20]} 5. c3 {[%emt 0:00:00]} d6 {[%emt 0:00:52]} 6. O-O {[%emt 0:00:00]} Nf6 {[%emt 0:00:05]} 7. Nbd2 {[%emt 0:06:46]} Be7 {[%emt 0:00:20]} 8. Qe2 {[%emt 0:00:21]} O-O {[%emt 0:00:31]} 9. Rd1 {[%emt 0:06:50]} Nbd7 {[%emt 0:04:17]} 10. e5 {[%emt 0:01:27]} dxe5 {[%emt 0:02:59]} 11. dxe5 {[%emt 0:00:52]} Nd5 {[%emt 0:00:18]} 12. Qe4 {[%emt 0:12:28]} f5 {[%emt 0:05:15]} 13. exf6 {[%emt 0:00:57]} N7xf6 {[%emt 0:00:08]} 14. Qxe6+ {[%emt 0:00:30]} Kh8 {[%emt 0:00:07]} 15. Nc4 {[%emt 0:06:31]} Qc7 {[%emt 0:10:22]} 16. Nfe5 {[%emt 0:04:52]} b5 {[%emt 0:01:25]} 17. Ng6+ {[%emt 0:03:09]} hxg6 {[%emt 0:00:47]} 18. Ne5 {[%emt 0:00:03] normal} 1-0

[Event "-chT Youth Countries 2019"]
[Site "Wuerzburg"]
[Date "2019.10.06"]
[Round "7.1"]
[White "Jeschke, Jan"]
[Black "Degenhard, Simon"]
[Result "0-1"]
[ECO "B21"]
[WhiteElo "1863"]
[BlackElo "2084"]
[Annotator "NA"]
[PlyCount "64"]
[EventDate "2019.10.02"]
[EventType "team-tourn"]
[EventRounds "7"]
[EventCountry "GER"]
[SourceTitle "playchess.com"]
[Source "ChessBase"]
[SourceQuality "1"]
[WhiteTeam "Saarland"]
[BlackTeam "Württemberg"]
[TimeControl "40/5400+30:1800+30"]

1. e4 {[%emt 0:00:00]} c5 {[%emt 0:00:00]} 2. d4 {[%emt 0:00:00]} cxd4 {[%emt 0:00:00]} 3. c3 {[%emt 0:00:00]} Nf6 {[%emt 0:00:00]} 4. e5 {[%emt 0:00:14]} Nd5 {[%emt 0:00:00]} 5. Nf3 {[%emt 0:00:06]} e6 {[%emt 0:00:06]} 6. cxd4 {[%emt 0:00:32]} d6 {[%emt 0:00:18]} 7. Bc4 {[%emt 0:03:06]} Be7 {[%emt 0:00:52]} 8. O-O {[%emt 0:00:11]} Nc6 {[%emt 0:01:18]} 9. Qe2 {[%emt 0:01:27]} O-O {[%emt 0:02:05]} 10. Nc3 {[%emt 0:00:48]} Nxc3 {[%emt 0:00:09]} 11. bxc3 {[%emt 0:00:05]} dxe5 {[%emt 0:00:20]} 12. dxe5 {[%emt 0:00:58]} Qa5 {[%emt 0:00:42]} 13. Bd2 {[%emt 0:05:14]} Rd8 {[%emt 0:02:29]} 14. Bb3 {[%emt 0:04:30]} b6 {[%emt 0:05:51]} 15. Rfe1 {[%emt 0:04:09]} Bb7 {[%emt 0:04:20]} 16. Bc2 {[%emt 0:02:27]} Rac8 {[%emt 0:02:14]} 17. Rac1 {[%emt 0:12:17]} Nb8 {[%emt 0:13:08]} 18. Nd4 {[%emt 0:10:13]} Qxa2 {[%emt 0:15:46]} 19. Bb3 {[%emt 0:34:35]} Qa6 {[%emt 0:11:48]} 20. Qh5 {[%emt 0:02:35]} Bd5 {[%emt 0:02:28]} 21. Bc2 {[%emt 0:00:41]} g6 {[%emt 0:00:07]} 22. Qh6 {[%emt 0:00:50]} Qb7 {[%emt 0:04:34]} 23. Re3 {[%emt 0:02:45]} Bf8 {[%emt 0:00:09]} 24. Qf4 {[%emt 0:00:02]} Nc6 {[%emt 0:03:22]} 25. Rh3 {[%emt 0:03:03]} Nxd4 {[%emt 0:00:49]} 26. cxd4 {[%emt 0:00:04]} Bxg2 {[%emt 0:02:45]} 27. Rg3 {[%emt 0:00:12]} Bc6 {[%emt 0:02:00]} 28. Qh4 {[%emt 0:01:18]} Qd7 {[%emt 0:06:50]} 29. Rh3 {[%emt 0:00:26]} h5 {[%emt 0:00:19]} 30. Be3 {[%emt 0:02:29]} Qd5 {[%emt 0:03:46]} 31. f3 {[%emt 0:00:05]} Be8 {[%emt 0:02:10] normal} 32. Qg5 {[%emt 0:02:29]} Bg7 {[%emt 0:02:39] normal} 0-1

[Event "-chT Youth Countries 2019"]
[Site "Wuerzburg"]
[Date "2019.10.06"]
[Round "7.2"]
[White "Schmidek, Emil"]
[Black "Sieber, Fiona"]
[Result "1/2-1/2"]
[ECO "C90"]
[WhiteElo "2387"]
[BlackElo "2252"]
[Annotator "ChessBase"]
[PlyCount "78"]
[EventDate "2019.10.02"]
[EventType "team-tourn"]
[EventRounds "7"]
[EventCountry "GER"]
[SourceTitle "playchess.com"]
[Source "ChessBase"]
[SourceQuality "1"]
[WhiteTeam "Berlin"]
[BlackTeam "Sachsen-Anhalt"]
[TimeControl "40/5400+30:1800+30"]

1. e4 {[%emt 0:00:00]} e5 {[%emt 0:00:00]} 2. Nf3 {[%emt 0:00:00]} Nc6 {[%emt 0:00:00]} 3. Bb5 {[%emt 0:00:00]} a6 {[%emt 0:00:00]} 4. Ba4 {[%emt 0:00:00]} Nf6 {[%emt 0:00:00]} 5. O-O {[%emt 0:00:00]} Be7 {[%emt 0:00:00]} 6. Re1 {[%emt 0:00:00]} b5 {[%emt 0:00:00]} 7. Bb3 {[%emt 0:00:02]} d6 {[%emt 0:00:02]} 8. c3 {[%emt 0:00:03]} O-O {[%emt 0:00:06]} 9. d3 {[%emt 0:00:04]} Na5 {[%emt 0:00:21]} 10. Bc2 {[%emt 0:00:04]} c5 {[%emt 0:00:25]} 11. Nbd2 {[%emt 0:00:05]} Nc6 {[%emt 0:00:08]} 12. Nf1 {[%emt 0:00:05]} Re8 {[%emt 0:00:39]} 13. h3 {[%emt 0:00:07]} h6 {[%emt 0:00:06]} 14. Ne3 {[%emt 0:00:08]} Bf8 {[%emt 0:02:19]} 15. a4 {[%emt 0:00:08]} Be6 {[%emt 0:06:21]} 16. d4 {[%emt 0:08:08]} cxd4 {[%emt 0:02:49]} 17. cxd4 {[%emt 0:00:08]} exd4 {[%emt 0:00:04]} 18. Nxd4 {[%emt 0:00:07]} Nxd4 {[%emt 0:00:05]} 19. Qxd4 {[%emt 0:00:05]} Qc7 {[%emt 0:07:49]} 20. Bd3 {[%emt 0:43:04]} d5 {[%emt 0:16:46]} 21. exd5 {[%emt 0:09:09]} Bxd5 {[%emt 0:00:49]} 22. axb5 {[%emt 0:00:48]} axb5 {[%emt 0:00:44]} 23. Bd2 {[%emt 0:10:57]} Bc6 {[%emt 0:03:15]} 24. Rxa8 {[%emt 0:04:50]} Rxa8 {[%emt 0:00:11]} 25. Qc3 {[%emt 0:20:21]} Qb7 {[%emt 0:01:53]} 26. Rc1 {[%emt 0:00:14]} Be4 {[%emt 0:02:36]} 27. Bf1 {[%emt 0:01:36]} Rd8 {[%emt 0:04:41]} 28. Qa5 {[%emt 0:00:53]} Ra8 {[%emt 0:12:37]} 29. Qxb5 {[%emt 0:02:24]} Qxb5 {[%emt 0:00:06]} 30. Bxb5 {[%emt 0:00:01]} Rb8 {[%emt 0:00:13]} 31. Ba4 {[%emt 0:01:03]} Rxb2 {[%emt 0:00:28]} 32. Bc3 {[%emt 0:00:51]} Rb1 {[%emt 0:00:30]} 33. Rxb1 {[%emt 0:00:06]} Bxb1 {[%emt 0:00:01]} 34. Bxf6 {[%emt 0:00:56]} gxf6 {[%emt 0:00:09]} 35. Bc2 {[%emt 0:00:23]} Ba2 {[%emt 0:00:58]} 36. Kf1 {[%emt 0:00:25]} Be6 {[%emt 0:00:54]} 37. Ke2 {[%emt 0:00:35]} Kg7 {[%emt 0:01:51]} 38. Bf5 {[%emt 0:00:21]} Bc5 {[%emt 0:00:39]} 39. Bc2 {[%emt 0:00:41]} f5 {[%emt 0:04:18] normal} 1/2-1/2